[Event "34th MPL National U14-ch 2022"]
[Site "Ahmedabad"]
[Date "2022.05.14"]
[Round "11.7"]
[White "Mayank Chakraborty"]
[Black "Vaz, Ethan"]
[Result "0-1"]
[ECO "B99"]
[WhiteElo "2015"]
[BlackElo "1792"]
[Annotator "TA"]
[PlyCount "114"]
[EventDate "2022.05.09"]
[EventType "swiss"]
[EventCountry "IND"]
[SourceTitle "playchess.com"]
[Source "ChessBase"]
[SourceQuality "1"]
[TimeControl "5400+30"]

{[%evp 24,114,0,0,7,2,0,2,-6,-9,0,0,0,0,0,0,0,0,0,-101,0,-75,-67,-66,-58,-70,-62,-78,-78,-74,-74,-92,0,-192,-179,-191,-189,-242,-211,-198,-145,-315,-325,-301,-308,-293,-299,-285,-231,-277,-225,-227,-224,-227,-227,-189,-111,-119,-131,-287,-268,-281,-285,-237,-156,-315,-344,-286,-246,-400,-329,-475,-467,-1408,-672,-806,-814,-12838,-5919,-29982,-29962,-29984,-29985,-29983,-29984,-29987,-29988,-29988,-29989,-29992,-29990,-29994,-29993]} 1. e4 {[%emt 0:00:02]} c5 {[%emt 0:00:06]} 2. Nf3 {[%emt 0:00:03]} d6 {[%emt 0:00:04]} 3. d4 {[%emt 0:00:06]} cxd4 {[%emt 0:00:10]} 4. Nxd4 {[%emt 0:00:05]} Nf6 {[%emt 0:00:05]} 5. Nc3 {[%emt 0:00:05]} a6 {[%emt 0:00:03]} 6. Bg5 {[%emt 0:00:06]} e6 {[%emt 0:00:04]} 7. f4 {[%emt 0:00:04]} Be7 {[%emt 0:00:10]} 8. Qf3 {[%emt 0:00:05]} Qc7 {[%emt 0:00:12]} 9. O-O-O {[%emt 0:00:06]} Nbd7 {[%emt 0:00:22]} 10. g4 {[%emt 0:00:10][%cal Bg2g4,Bg4g5][%mdl 32]} b5 {[%emt 0:00:15][%cal Bb7b5,Bb5b4][%mdl 32]} 11. Bxf6 {[%emt 0:00:06]} Nxf6 {[%emt 0:00:23]} 12. g5 {[%emt 0:00:05]} Nd7 {[%emt 0:00:09]} 13. f5 {[%emt 0:00:02]} O-O {[%emt 0:00:29] B99: Sicilian Najdorf: 6 Bg5 e6 7 f4 Be7 8 Qf3 Qc7 9 0-0-0 Nbd7.} 14. h4 {[%emt 0:00:14]} (14. f6 gxf6 15. gxf6 Nxf6 16. Rg1+ Kh8 $17) 14... b4 {[%emt 0:24:42]} 15. Nce2 {[%emt 0:00:19] next Nf4 is good for White.} Bb7 $1 {[%emt 0:03:28] The position is equal.} (15... Ne5 16. Qg3 $14) 16. Bg2 {[%emt 0:02:15]} Rac8 {[%emt 0:10:25] ...e5 is the strong threat.} 17. Kb1 {[%emt 0:38:41]} e5 {[%emt 0:29:17]} 18. f6 $1 {[%emt 0:00:04]} exd4 {[%emt 0:01:55]} (18... gxf6 $2 19. Nf5 Bd8 20. Nxd6 $18) 19. fxe7 {[%emt 0:00:41]} Rfe8 $36 {[%emt 0:02:30][%mdl 2048] Black has good play.} (19... Qxc2+ 20. Ka1 Rfe8 21. Nxd4 $16) 20. Nxd4 {[%emt 0:00:12] [#]} Nc5 $146 {[%emt 0:10:22]} ({Predecessor:} 20... Rxe7 21. Qf4 g6 22. h5 Qc5 23. Qd2 Ne5 24. hxg6 fxg6 25. Rhf1 Nf7 26. Rf6 Qxg5 {1-0 (35) Hector,J (2553)-Ahlander,B (2389) Umea 2003}) 21. Qg4 {[%emt 0:25:02]} (21. g6 $11 fxg6 22. h5) 21... Qxe7 {[%emt 0:07:24]} (21... g6 $1 $17) 22. e5 {[%emt 0:03:44]} (22. Nf5 $11 Qe5 23. Rd4) 22... Bxg2 $1 $17 {[%emt 0:01:27]} ({Much weaker is} 22... Qxe5 23. Bxb7 Nxb7 24. Rhf1 $11) (22... dxe5 23. Nf5 Qc7 24. Nd6 $16) 23. Qxg2 {[%emt 0:00:04][%cal Og5g6]} Qxe5 {[%emt 0:00:32]} 24. h5 {[%emt 0:02:51]} Ne4 {[%emt 0:01:42]} 25. g6 {[%emt 0:02:17]} fxg6 {[%emt 0:00:38]} 26. hxg6 {[%emt 0:00:14]} h6 {[%emt 0:00:10] Active counter play!} 27. Rhe1 {[%emt 0:02:35]} Qg3 {[%emt 0:02:03]} (27... a5 $17) 28. Qh1 $2 {[%emt 0:04:05]} (28. Qxg3 $11 Nxg3 29. Nc6) 28... Qxg6 $19 {[%emt 0:00:35]} 29. Rg1 {[%emt 0:03:31]} Qf6 {[%emt 0:00:35]} 30. Qh5 {[%emt 0:01:21]} (30. Rgf1 {was necessary.} Qe5 31. Qf3) 30... Re5 {[%emt 0:00:36]} 31. Qh3 {[%emt 0:00:50]} Rf8 {[%emt 0:00:14]} (31... Rc4 $19 {Hoping for ...Rd5.} 32. Nf3 Rc3 $3 {[%mdl 512]} 33. bxc3 Nxc3+ 34. Kc1 Nxa2+ 35. Kb1 Nc3+ 36. Kc1 Ne2+ 37. Kb1 Ra5 38. Rxg7+ Kxg7 39. Qg4+ Kh7 40. Qe4+ Kh8 41. Qa8+ Kg7 42. Qb7+ Qf7 43. Qxf7+ Kxf7 44. Rxd6 Rf5) 32. a3 $2 {[%emt 0:00:26]} (32. Qb3+ $17 {might work better.} Qf7 33. Qxb4) 32... Nf2 {[%emt 0:01:30]} 33. Qb3+ {[%emt 0:00:22]} Qf7 {[%emt 0:00:07]} 34. Rd2 {[%emt 0:00:33]} Qxb3 {[%emt 0:00:41]} 35. Nxb3 {[%emt 0:00:06]} Ne4 {[%emt 0:00:21]} 36. Rdg2 {[%emt 0:00:17]} Rg5 {[%emt 0:00:21]} 37. Rxg5 {[%emt 0:00:05]} Nxg5 {[%emt 0:00:25]} ({Not} 37... hxg5 38. axb4 Rf2 39. c4 $17) 38. axb4 {[%emt 0:00:05][%mdl 4096] Endgame KRN-KRN} Rf4 {[%emt 0:01:07]} 39. c3 {[%emt 0:00:16]} Kf7 {[%emt 0:00:25]} (39... Nf3 $19 40. Rh1 Kh7) 40. Nd4 {[%emt 0:01:05]} Kf6 {[%emt 0:01:05]} 41. b5 $2 {[%emt 0:00:12]} (41. Rh1 $17) 41... axb5 {[%emt 0:00:38]} 42. Nxb5 {[%emt 0:00:05] [#]} h5 $1 {[%emt 0:01:42][%cal Bh6h5,Bh5h4,Bh4h3,Bh3h2][%mdl 32]} 43. Nxd6 {[%emt 0:00:10]} Ne6 {[%emt 0:01:00]} 44. b4 $2 {[%emt 0:03:11] [#]} (44. Ne8+ $17 Kf7 45. Nd6+ Ke7 46. Nc8+ Kd7 47. Re1) 44... g5 $1 {[%emt 0:00:38][%cal Bg7g5,Bg5g4,Bg4g3,Bg3g2][%mdl 32]} 45. Kc2 {[%emt 0:01:26]} h4 {[%emt 0:00:35]} 46. Kd3 $2 {[%emt 0:00:12]} (46. Rh1 {was worth a try.}) 46... g4 {[%emt 0:00:40]} 47. b5 {[%emt 0:00:40]} (47. Ne4+ $142 Kf5 48. Nd6+ Kg6 49. b5) 47... h3 {[%emt 0:00:26] White must now prevent ...h2.} 48. Re1 {[%emt 0:00:23]} (48. Ne4+ $142 Kf5 49. Ng3+ Kg5 50. Nh1 (50. Ne4+ $2 Kh4 $19)) 48... Rf3+ {[%emt 0:00:57]} (48... Nc5+ $142 49. Ke2 Ke5) 49. Kd2 {[%emt 0:00:11]} Nc5 {[%emt 0:00:17] Strongly threatening ...Rd3+.} 50. Nc4 {[%emt 0:00:40]} g3 {[%emt 0:00:42] ( -> ...h2)} 51. b6 {[%emt 0:00:19]} h2 {[%emt 0:00:10] Black mates.} 52. Ne5 {[%emt 0:00:25]} Rf2+ {[%emt 0:00:07]} 53. Kd1 {[%emt 0:00:08]} Kf5 {[%emt 0:00:16]} 54. Nc4 {[%emt 0:00:15]} g2 {[%emt 0:00:27]} 55. Ne3+ {[%emt 0:00:07]} Kf4 {[%emt 0:00:08]} 56. Nd5+ {[%emt 0:00:07]} Kg3 {[%emt 0:00:04]} 57. Re3+ {[%emt 0:00:04]} Rf3 {[%emt 0:00:04] Weighted Error Value: White=0.67/Black=0.20 (precise)} 0-1

[Event "34th MPL National U14-ch 2022"]
[Site "Ahmedabad"]
[Date "2022.05.14"]
[Round "11.8"]
[White "Nirnay Garg"]
[Black "Shaik Sumer Arsh"]
[Result "1/2-1/2"]
[ECO "D02"]
[WhiteElo "1755"]
[BlackElo "1999"]
[Annotator "TA"]
[PlyCount "132"]
[EventDate "2022.05.09"]
[EventType "swiss"]
[EventCountry "IND"]
[SourceTitle "playchess.com"]
[Source "ChessBase"]
[SourceQuality "1"]
[TimeControl "5400+30"]

{[%evp 14,132,0,0,0,3,26,41,33,23,29,21,46,0,-3,-15,-10,-24,0,0,25,16,18,31,30,27,22,21,30,30,18,-20,-20,-21,-20,-36,-13,-1,-7,-14,-7,0,-17,-24,-39,-92,-87,-108,-133,-120,-113,-115,0,0,0,0,0,0,216,36,34,24,25,0,0,0,0,0,0,-6,-6,-7,-7,-6,-6,-12,0,0,0,0,0,0,0,0,0,0,0,0,0,0,0,0,0,0,0,0,0,0,0,0,0,0,0,0,0,0,0,0,0,0,0,0,0,0,0,0,0,0,0,0,0]} 1. d4 {[%emt 0:00:02]} Nf6 {[%emt 0:00:07]} 2. Bf4 {[%emt 0:00:05]} d5 {[%emt 0:00:28]} 3. e3 {[%emt 0:00:05]} c5 {[%emt 0:00:37]} 4. c3 {[%emt 0:00:06]} Nc6 {[%emt 0:00:14]} 5. Nd2 {[%emt 0:00:06]} e6 {[%emt 0:00:36]} 6. Ngf3 {[%emt 0:01:48]} Bd6 {[%emt 0:00:07] 6...cxd4 injects fresh life into this line.} 7. Bg3 {[%emt 0:00:57]} O-O {[%emt 0:01:26]} 8. Bd3 {[%emt 0:00:09]} h6 {[%emt 0:05:51] D02: 1 d4 d5 2 Nf3 sidelines, including 2...Nf6 3 g3 and 2...Nf6 3 Bf4.} 9. Ne5 {[%emt 0:00:25]} Bxe5 {[%emt 0:01:22]} 10. dxe5 {[%emt 0:08:08]} Nd7 {[%emt 0:00:25] White is slightly better.} 11. Qh5 {[%emt 0:03:59]} f5 {[%emt 0:30:05]} 12. exf6 {[%emt 0:08:23]} Nxf6 {[%emt 0:00:41] [#]} 13. Qd1 $146 {[%emt 0:04:00]} (13. Qg6 Ne7 14. Bc7 Qxc7) (13. Qe2 c4 14. Bc2 b5 15. Nf3 a5 16. Rd1 Qb6 17. Ne5 Bb7 18. Ng6 Rf7 19. Be5) ({Wrong is} 13. Qg6 $2 Ne7 14. Bc7 Qxc7 $19) (13. Qe2 $14 {is superior.}) ({Predecessor:} 13. Qe2 c4 14. Bc2 b5 15. Nf3 a5 16. Rd1 Qb6 17. Ne5 Bb7 18. Ng6 Rf7 19. Be5 {1-0 (50) Vaisser,A (2531)-Velten,P (2426) Chalons en Champagne 2014}) 13... e5 $11 {[%emt 0:10:01][%cal Be6e5,Be5e4][%mdl 32]} 14. O-O {[%emt 0:02:17]} e4 {[%emt 0:01:46]} 15. Be2 {[%emt 0:01:58]} Kh8 {[%emt 0:03:10]} 16. Nb3 {[%emt 0:02:23]} Qe7 {[%emt 0:03:29]} 17. c4 {[%emt 0:03:57]} Be6 {[%emt 0:00:43]} 18. cxd5 {[%emt 0:04:26]} Bxd5 {[%emt 0:01:12]} 19. Qc2 {[%emt 0:04:35]} b6 {[%emt 0:01:03][%cal Bb7b6,Bb6b5][%mdl 32]} 20. a3 {[%emt 0:02:29] Prevents Nb4.} Ne5 {[%emt 0:08:37][%cal Oe5d3]} 21. Nd2 {[%emt 0:05:21]} Rad8 {[%emt 0:01:24][%cal Oe5d3]} 22. Nc4 {[%emt 0:10:26]} (22. Rad1) 22... Nd3 {[%emt 0:13:59]} 23. b3 {[%emt 0:03:00]} (23. Bxd3 exd3 24. Qxd3 Bxg2) ({Don't blunder} 23. Bxd3 $2 exd3 24. Qxd3 Bxg2 $1 $19 {[%mdl 512]}) 23... b5 {[%emt 0:04:10]} 24. Nb2 {[%emt 0:02:08]} Qe6 {[%emt 0:02:14]} 25. Nxd3 {[%emt 0:05:06]} exd3 {[%emt 0:00:20]} 26. Bxd3 {[%emt 0:00:08] [#] This bishop pair is nice.} Bxg2 $1 {[%emt 0:02:04][%mdl 64] Decoy} 27. Kxg2 {[%emt 0:00:30]} Qd5+ {[%emt 0:00:01]} 28. Kg1 {[%emt 0:00:30]} Qxd3 {[%emt 0:00:01]} 29. Qxc5 {[%emt 0:00:24] [#]} (29. Qxd3 $15 Rxd3 30. b4) 29... Ne4 $1 $17 {[%emt 0:00:06]} 30. Qc6 {[%emt 0:10:02]} Rf6 {[%emt 0:02:20][%mdl 1024] Black has strong compensation.} 31. Qb7 {[%emt 0:00:32]} Nd2 {[%emt 0:01:53]} 32. Rfd1 {[%emt 0:00:26]} Qe2 {[%emt 0:00:05]} (32... a6) (32... Kh7 $17) 33. Kh1 $11 {[%emt 0:08:35]} Rdf8 {[%emt 0:00:35]} 34. Be5 {[%emt 0:02:58]} R6f7 {[%emt 0:02:10]} 35. Qg2 {[%emt 0:00:28]} Re7 $2 {[%emt 0:02:28] [#]} (35... Nf3 36. Bg3 Qc2) (35... Nf3 $1 $11 {and Black stays safe.} 36. Bg3 a5) 36. Rg1 $1 {[%emt 0:01:58]} Rg8 $14 {[%emt 0:00:49]} 37. f4 {[%emt 0:02:39]} (37. Rae1 Qh5 38. f4) 37... Qxe3 {[%emt 0:00:33]} 38. Rae1 {[%emt 0:00:43]} (38. Rac1 Qf3 39. Rc2 Qxg2+ 40. Kxg2) 38... Qf3 {[%emt 0:00:01] The position is equal.} 39. Rd1 {[%emt 0:00:40]} Qxg2+ {[%emt 0:00:49]} 40. Rxg2 {[%emt 0:00:01]} Nxb3 {[%emt 0:00:21]} 41. Rb2 {[%emt 0:01:13]} Na5 {[%emt 0:00:34]} 42. Rxb5 {[%emt 0:00:23]} Nc4 {[%emt 0:00:01]} 43. Rc5 {[%emt 0:00:27]} Nxe5 {[%emt 0:00:51]} 44. fxe5 $11 {[%emt 0:00:06][%mdl 4096] Endgame KRR-KRR} Rge8 {[%emt 0:00:03]} 45. Re1 {[%emt 0:00:42]} Kh7 {[%emt 0:01:15]} 46. Kg2 {[%emt 0:00:31]} Kg6 {[%emt 0:00:04]} 47. Kf3 {[%emt 0:00:19]} Kf5 {[%emt 0:00:26][%cal Re7e5]} 48. Ra5 {[%emt 0:00:19]} Rc8 {[%emt 0:00:48]} 49. Re3 {[%emt 0:00:15]} Rc6 {[%emt 0:01:11]} 50. Kg3 {[%emt 0:00:59]} g5 {[%emt 0:01:05]} 51. h4 {[%emt 0:01:46]} gxh4+ {[%emt 0:00:31]} 52. Kxh4 {[%emt 0:00:09]} Rc4+ {[%emt 0:00:14]} 53. Kg3 $1 {[%emt 0:00:31]} Rg7+ {[%emt 0:00:47]} 54. Kf2 {[%emt 0:00:28]} Rc2+ {[%emt 0:00:33]} 55. Re2 {[%emt 0:00:09]} Rxe2+ {[%emt 0:00:36]} 56. Kxe2 {[%emt 0:00:04] KR-KR} Ke4 {[%emt 0:00:25]} 57. Kf2 {[%emt 0:00:40]} Kf4 {[%emt 0:00:27]} 58. e6 {[%emt 0:00:28]} Re7 {[%emt 0:00:25]} 59. Kg2 {[%emt 0:00:38]} Kg4 {[%emt 0:00:23]} 60. Ra4+ {[%emt 0:00:26]} Kf5 {[%emt 0:00:34]} 61. Ra6 {[%emt 0:00:59]} Kg4 {[%emt 0:00:40]} 62. Ra4+ {[%emt 0:00:07]} Kg5 {[%emt 0:00:01]} 63. Ra5+ {[%emt 0:00:13]} Kf6 {[%emt 0:00:01]} 64. Ra6 {[%emt 0:00:03]} Rg7+ {[%emt 0:01:09]} 65. Kh3 $1 {[%emt 0:00:38][%cal Oe6e7] aiming for e7+!} Rc7 {[%emt 0:00:28]} 66. Kg4 {[%emt 0:00:28]} Ke5 {[%emt 0:01:35] Weighted Error Value: White=0.13 (very precise) /Black=0.14 (very precise)} 1/2-1/2

[Event "34th MPL National U14-ch 2022"]
[Site "Ahmedabad"]
[Date "2022.05.14"]
[Round "11.9"]
[White "Arpith S Bijoy"]
[Black "Chidvilash Sai Surapaneni"]
[Result "1-0"]
[ECO "E03"]
[WhiteElo "1713"]
[BlackElo "1912"]
[Annotator "TA"]
[PlyCount "32"]
[EventDate "2022.05.09"]
[EventType "swiss"]
[EventCountry "IND"]
[SourceTitle "playchess.com"]
[Source "ChessBase"]
[SourceQuality "1"]
[TimeControl "5400+30"]

{[%evp 20,32,-8,-45,-32,-58,-57,-62,-65,-54,0,-437,452,451,1594]} 1. d4 {[%emt 0:00:03]} Nf6 {[%emt 1:31:00]} 2. c4 {[%emt 0:00:09]} e6 {[%emt 0:00:00]} 3. g3 {[%emt 0:00:47]} d5 {[%emt 0:00:00]} 4. Bg2 {[%emt 0:00:10]} dxc4 {[%emt 0:00:00]} 5. Nf3 {[%emt 0:00:15]} c5 {[%emt 0:00:00]} 6. Qa4+ {[%emt 0:03:38]} Nbd7 {[%emt 0:00:00]} 7. dxc5 {[%emt 0:02:01]} Bxc5 {[%emt 0:00:00]} 8. Qxc4 {[%emt 0:00:04]} a6 {[%emt 0:00:00]} 9. O-O {[%emt 0:05:15]} b5 {[%emt 0:00:00]} 10. Qd3 {[%emt 0:04:26]} Bb7 {[%emt 0:00:00]} 11. Nbd2 {[%emt 0:09:21]} O-O {[%emt 0:00:00] E03: Open Catalan: 5 Qa4+ Nbd7 6 Qxc4.} 12. Nb3 {[%emt 0:00:21]} Be4 {[%emt 0:00:00]} 13. Qd1 {[%emt 0:00:41]} Bb6 {[%emt 0:00:00]} 14. Bf4 {[%emt 0:12:37] [#]} Bc7 $146 {[%emt 0:00:00]} (14... Rc8 $15) ({Predecessor:} 14... Rc8 15. Ne5 Bxg2 16. Kxg2 Nd5 17. Nd3 Rc4 18. Nd2 Rc6 19. Nf3 h6 20. a4 Nc5 21. axb5 axb5 22. Nxc5 Bxc5 {½-½ (29) Sprenger,J (2536)-Ribli,Z (2577) Germany 2008}) 15. Be5 $2 {[%emt 0:58:12][%mdl 8192] [#]} Bd6 $4 {[%mdl 8192]} ({Don't go for} 15... Bxe5 $2 16. Nxe5 Nxe5 17. Qxd8 Rfxd8 18. f3 $19) (15... Nxe5 $19 {and all is fine.} 16. Qxd8 Raxd8) 16. Bxd6 $18 {[%emt 0:00:00]} Qc7 {[%emt 0:00:00] Weighted Error Value: White=1.24/Black=1.45} (16... Re8 $142 17. Rc1 Qb6) 1-0

[Event "34th MPL National U14-ch 2022"]
[Site "Ahmedabad"]
[Date "2022.05.14"]
[Round "11.10"]
[White "Aayush Bhojak"]
[Black "Jaiveer Mahendru"]
[Result "1-0"]
[ECO "D02"]
[WhiteElo "1494"]
[BlackElo "1832"]
[Annotator "NA RC COMBH"]
[PlyCount "57"]
[EventDate "2022.05.09"]
[EventType "swiss"]
[EventCountry "IND"]
[SourceTitle "playchess.com"]
[Source "ChessBase"]
[SourceQuality "1"]
[TimeControl "5400+30"]

{[%evp 12,51,1,0,9,0,3,2,16,5,5,0,0,0,29,27,41,-6,25,29,25,34,46,40,49,42,23,34,20,12,12,34,140,196,131,208,418,440,29989,412,606,436]} 1. d4 {[%emt 0:02:30]} Nf6 {[%emt 0:00:08]} 2. Bf4 {[%emt 0:00:05]} b6 {[%emt 0:00:04]} 3. e3 {[%emt 0:00:13]} Bb7 {[%emt 0:00:12]} 4. Nf3 {[%emt 0:00:37]} e6 {[%emt 0:00:37]} 5. Nbd2 {[%emt 0:00:31]} Be7 {[%emt 0:00:06]} 6. Bd3 {[%emt 0:01:21]} c5 {[%emt 0:02:07]} 7. h3 {[%emt 0:01:12]} O-O {[%emt 0:01:20]} 8. c3 {[%emt 0:00:42]} d5 {[%emt 0:02:35]} 9. O-O {[%emt 0:00:49]} c4 {[%emt 0:01:46]} 10. Bc2 {[%emt 0:00:31]} b5 {[%emt 0:00:31]} 11. Qe2 {[%emt 0:01:52]} Nbd7 {[%emt 0:15:59]} 12. Ne5 {[%emt 0:03:05]} Nxe5 {[%emt 0:02:13]} 13. dxe5 {[%emt 0:02:38]} Nd7 {[%emt 0:06:47]} 14. Nf3 {[%emt 0:02:45]} (14. Qg4 $14) 14... Re8 {[%emt 0:08:38]} 15. Nd4 {[%emt 0:05:02]} a6 {[%emt 0:01:09]} 16. Bh2 {[%emt 0:02:49]} Nc5 {[%emt 0:06:15]} 17. f4 {[%emt 0:02:55]} ({Of course not} 17. Qh5 g6 18. Qg4 Qb6 $11) 17... g6 {[%emt 0:09:33]} 18. f5 {[%emt 0:05:47]} exf5 {[%emt 0:00:31] [#]} 19. Nxf5 $1 {[%emt 0:00:41]} Bf8 $1 {[%emt 0:05:05]} ({Don't do} 19... gxf5 20. Bxf5 Bg5 21. h4 $16) 20. Qf2 {[%emt 0:02:33]} Qd7 $1 {[%emt 0:01:06] [#]} 21. Qh4 $1 {[%emt 0:04:57]} Ne4 (21... a5 $11) 22. Bxe4 {[%emt 0:00:30]} dxe4 23. Rad1 {[%emt 0:00:30]} Qc8 $2 (23... Qe6 $16 24. Nd6 Be7) 24. Nd6 {[%emt 0:00:30]} Bxd6 {[#]} (24... Qd8 $18 25. Qxd8 Raxd8 26. Nxb7 Rd3) 25. Rxd6 $18 {[%emt 0:00:30]} (25. Rxf7 $142 $3 {[%mdl 512]} Kxf7 26. Qxh7+ Kf8 27. exd6 Qd7 28. Qxd7 Kg8 29. Rf1 Bd5 30. Rf6) 25... Re6 26. Rfd1 {[%emt 0:00:30]} Rxd6 27. exd6 {[%emt 0:00:30]} Qd7 28. Qf6 {[%emt 0:00:30]} Qd8 29. Be5 {[%emt 0:00:30]} 1-0